Workbook

Sheet 地市透视表
A1: 地市 | B1: 资产条数 | C1: 资产原值（元） | D1: 资产净值（元） | E1: 净值/原值 | F1: 评估价（元）
A2: 宁波 | B2: 12 | C2: 78453.88 | D2: 2353.61 | E2: =D2/C2 -> 3.00% | F2: 1695.20
A3: 绍兴 | B3: 113 | C3: 354515.08 | D3: 24233.91 | E3: =D3/C3 -> 6.84% | F3: 38423.59
A4: 合计 | B4: =SUM(B2:B3) -> 125 | C4: =SUM(C2:C3) -> 432968.96 | D4: =SUM(D2:D3) -> 26587.52 | E4: =D4/C4 -> 6.14% | F4: =SUM(F2:F3) -> 40118.79

Sheet 汇总
A1: 地市 | B1: 拍卖批次 | C1: 资产类别名称（大类相同完整度不同的分行填报） | D1: 对应估值清单的分类描述 | E1: 计量单位 | F1: 资产数量 | G1: 总重量（kg） | H1: 完整度/出铜（铝）率（%） | I1: 最低转让单价（含税） | J1: 最低转让总价（含税） | K1: 备注 （主要配件缺失的需要注明）
A2: 宁波 | B2: 第二十五批 | C2: 3P空调 | D2: 3匹室内外成套 | E2: 台 | F2: 1 | H2: 0% | I2: 936 | J2: =I2*F2 -> 936 | K2: 无铜管
A3: 宁波 | B3: 第二十五批 | C3: 整流模块 | D3: 其他各类铁质为主的报废物资 | E3: 个 | F3: 1 | G3: 160 | I3: 2270元/吨 | J3: =2270/1000*G3 -> 363.2 | K3: 无配件
A4: 宁波 | B4: 第二十五批 | C4: 壁挂式开关电源 | D4: 其他各类铁质为主的报废物资 | E4: 架 | F4: 1 | I4: 2270元/吨 | K4: 无配件
A5: 宁波 | B5: 第二十五批 | C5: 嵌入式开关电源 | D5: 其他各类铁质为主的报废物资 | E5: 架 | F5: 7 | I5: 2270元/吨 | K5: 无配件
A6: 宁波 | B6: 第二十五批 | C6: 组合式开关电源 | D6: 组合式开关电源 | E6: 架 | F6: 2 | H6: 0% | I6: 997×完整度+198 | J6: =(997*H6+198)*F6 -> 396.00 | K6: 无配件
A7: 绍兴 | B7: 第二十五批 | C7: 铜线 | D7: 铜缆类 | E7: 米 | F7: 36 | G7: 49.3 | H7: 23% | I7: 70510元/吨×出铜率 | J7: =70510/1000*H7*G7 -> 799.51 | K7: 称重
A8: 绍兴 | B8: 第二十五批 | C8: 开关电源 | D8: 组合式开关电源 | E8: 架 | F8: 35 | G8: / | H8: 0% | I8: 997×完整度+198 | J8: =(997*H8+198)*F8 -> 6930.00 | K8: 不称重，填写完成率
A9: 绍兴 | B9: 第二十五批 | C9: 开关电源 | D9: 其他各类铁质为主的报废物资 | E9: 架 | F9: 18 | G9: 367.2 | I9: 2270元/吨 | J9: =2270/1000*G9 -> 833.544 | K9: 称重
A10: 绍兴 | B10: 第二十五批 | C10: 空调 | D10: 3匹室内外成套 | E10: 台 | F10: 29 | G10: / | I10: 936 | J10: =F10*I10 -> 27144.00 | K10: 套用单价
A11: 绍兴 | B11: 第二十五批 | C11: 空调 | D11: 3匹（无外机） | E11: 台 | F11: 1 | G11: / | I11: 454 | J11: 454.00 | K11: 1台无外机
A12: 绍兴 | B12: 第二十五批 | C12: 空调 | D12: 3匹（无压缩机） | E12: 台 | F12: 1 | G12: / | I12: 659 | J12: 659.00 | K12: 1台无压缩机
A13: 绍兴 | B13: 第二十五批 | C13: 直流配电箱 | D13: 配电箱类 | E13: 个 | F13: 1 | G13: 6 | I13: 107 | J13: 107.00 | K13: 称重
A14: 绍兴 | B14: 第二十五批 | C14: 空调 | D14: 2P及2P以下成套空调 | E14: 台 | F14: 1 | G14: / | I14: 520 | J14: 520.00 | K14: 套用单价
A15: 绍兴 | B15: 第二十五批 | C15: 汇流条 | D15: 其他各类铁质为主的报废物资 | E15: 段 | F15: 6 | G15: 24 | I15: 2270元/吨 | J15: =2270/1000*G15 -> 54.48 | K15: 称重
A16: 绍兴 | B16: 第二十五批 | C16: 机柜 | D16: 其他各类铁质为主的报废物资 | E16: 个 | F16: 1 | G16: 103 | I16: 2270元/吨 | J16: 233.81 | K16: 称重
A17: 绍兴 | B17: 第二十五批 | C17: 监控 | D17: 动环监控 | E17: 个 | F17: 3 | G17: / | I17: 16 | J17: =F17*I17 -> 48.00 | K17: 套用单价
A18: 绍兴 | B18: 第二十五批 | C18: 接地铜牌 | D18: 其他各类铁质为主的报废物资 | E18: 块 | F18: 6 | G18: 12 | I18: 2270元/吨 | J18: 27.24 | K18: 称重
A19: 绍兴 | B19: 第二十五批 | C19: 电表 | D19: 其他各类铁质为主的报废物资 | E19: 个 | F19: 2 | G19: 5 | I19: 2270元/吨 | J19: 11.35 | K19: 称重
A20: 绍兴 | B20: 第二十五批 | C20: 铝线 | D20: 铝缆类 | E20: 米 | F20: 102 | G20: 71.4 | H20: 23% | I20: 17090元/吨×出铝率 | J20: =17090/1000*H20*G20 -> 280.65 | K20: 称重
A21: 绍兴 | B21: 第二十五批 | C21: 交流配电箱 | D21: 配电箱类 | E21: 个 | F21: 3 | G21: / | I21: 107 | J21: =F21*I21 -> 321.00 | K21: 套用单价

Sheet 宁波
A1: 序号 | B1: 报废批复文号 | C1: 资产编号 | D1: 批次 | E1: 资产名称 | F1: 资产类别名称 | G1: 资产原值 | H1: 资产净值 | I1: 累计折旧 | J1: 资产数量 | K1: 计量单位 （个/吨/米等） | L1: 单节电池电压（2V/12V） | M1: 规格型号 | N1: 生产厂家 | O1: 站点名称 | P1: 站点编码
A2: 1 | B2: 宁波铁塔党委会纪要〔2022〕第 21 期 | C2: 330200325006 | E2: 嵌入式开关电源32A/3P*1（室外标准机柜用） | F2: 嵌入式开关电源 | G2: 9756.93 | H2: 292.71 | I2: 9464.22 | J2: 1 | K2: 架 | M2: ETP48200 | N2: =VLOOKUP(C2,'[1]00资产已报废'!$B:$P,13,0) -> 中达电通股份有限公司 | P2: 330283500000000100
A3: 2 | B3: 宁波铁塔总经理办公会纪要〔2023〕第 66 期 | C3: 330200323542 | E3: 嵌入式开关电源32A/3P*1（室外标准机柜用） | F3: 组合式开关电源 | G3: 3728.85 | H3: 111.87 | I3: 3616.98 | J3: 1 | K3: 架 | M3: (杭州中恒)-开关电源及电源模块-开关电源 | N3: =VLOOKUP(C3,'[1]00资产已报废'!$B:$P,13,0) -> 杭州中恒电气股份有限公司 | P3: 330282908000001357
A4: 3 | B4: 宁波铁塔总经理办公会纪要〔2023〕第 66 期 | C4: 330200342274 | E4: (中达电通)-开关电源及电源模块-开关电源 | F4: 嵌入式开关电源 | G4: 5401.49 | H4: 162.04 | I4: 5239.45 | J4: 1 | K4: 架 | M4: 嵌入式开关电源32A/3P*1（室外标准机柜用） | N4: =VLOOKUP(C4,'[1]00资产已报废'!$B:$P,13,0) -> 中达电通股份有限公司 | P4: 330225500000000051
A5: 4 | B5: 宁波铁塔总经理办公会纪要〔2023〕第 66 期 | C5: 330200333118 | E5: 嵌入式开关电源 | F5: 嵌入式开关电源 | G5: 7535.76 | H5: 226.07 | I5: 7309.69 | J5: 1 | K5: 架 | M5: 48V/300A高效系统(50A高效模块，共用电源系统，三相交流输入)100A | P5: 330206500000000179
A6: 5 | B6: 宁波铁塔总经理办公会纪要〔2023〕第 66 期 | C6: 330200342275 | E6: (杭州中恒)-开关电源及电源模块-开关电源 | F6: 嵌入式开关电源 | G6: 5442.39 | H6: 163.27 | I6: 5279.12 | J6: 1 | K6: 架 | M6: 嵌入式开关电源32A/3P*1（室外标准机柜用） | N6: =VLOOKUP(C6,'[1]00资产已报废'!$B:$P,13,0) -> 杭州中恒电气股份有限公司 | P6: 330225500000000051
A7: 6 | B7: 宁波铁塔总经理办公会纪要〔2023〕第 66 期 | C7: 330200320887 | E7: 嵌入式开关电源 | F7: 嵌入式开关电源 | G7: 5826.94 | H7: 174.81 | I7: 5652.13 | J7: 1 | K7: 架 | M7: 嵌入式开关电源32A/3P*1（室外标准机柜用） | N7: =VLOOKUP(C7,'[1]00资产已报废'!$B:$P,13,0) -> 中达电通股份有限公司 | P7: 330206500000000009
A8: 7 | B8: 宁波铁塔总经理办公会纪要〔2023〕第 66 期 | C8: 330200334704 | E8: 嵌入式开关电源 | F8: 嵌入式开关电源 | G8: 5929.29 | H8: 177.88 | I8: 5751.41 | J8: 1 | K8: 架 | M8: 48V/300A高效系统(50A高效模块，共用电源系统，三相交流输入)100A | P8: 330225908000000494
A9: 8 | B9: 宁波铁塔总经理办公会纪要〔2023〕第 66 期 | C9: 330200010927 | E9: (杭州中恒)-开关电源及电源模块-开关电源 | F9: 组合式开关电源 | G9: 10849.77 | H9: 325.49 | I9: 10524.28 | J9: 1 | K9: 架 | M9: 壁挂式开关电源32A/3P*1 | N9: =VLOOKUP(C9,'[1]00资产已报废'!$B:$P,13,0) -> 杭州中恒电气股份有限公司 | P9: 330212908000001518
A10: 9 | B10: 宁波铁塔总经理办公会纪要〔2023〕第 66 期 | C10: 330200338089 | E10: 嵌入式开关电源 | F10: 嵌入式开关电源 | G10: 5605.71 | H10: 168.17 | I10: 5437.54 | J10: 1 | K10: 架 | M10: 48V/300A高效系统(50A高效模块，共用电源系统，三相交流输入)100A | P10: 330282908000001100
A11: 10 | B11: 总经理办公会纪要〔2024〕第 3 期 | C11: 330200330603 | E11: (北京融和创)-空调及空调零部件-空调 | F11: 基站空调柜式 | G11: 6241.11 | H11: 187.23 | I11: 6053.88 | J11: 1 | K11: 台 | M11: 3P 三相柜式（单冷） | N11: =VLOOKUP(C11,'[1]00资产已报废'!$B:$P,13,0) -> 北京融和创科技有限公司 | P11: 330212010000001315
A12: 11 | B12: 总经理办公会纪要〔2024〕第 3 期 | C12: 330200341617 | E12: (杭州中恒)-开关电源及电源模块-开关电源 | F12: 壁挂式开关电源 | G12: 5037.09 | H12: 151.11 | I12: 4885.98 | J12: 1 | K12: 架 | M12: 壁挂式开关电源32A/3P*1 | N12: =VLOOKUP(C12,'[1]00资产已报废'!$B:$P,13,0) -> 杭州中恒电气股份有限公司 | P12: 33021101000099
A13: 12 | B13: 总经理办公会纪要〔2024〕第7期 | C13: 330200343011 | E13: (杭州中恒)-开关电源及电源模块-开关电源模块 | F13: 整流模块 | G13: 7098.55 | H13: 212.96 | I13: 6885.59 | J13: 1 | K13: 个 | M13: 50A（普效模块） | N13: =VLOOKUP(C13,'[1]00资产已报废'!$B:$P,13,0) -> 杭州中恒电气股份有限公司 | P13: 330212908000001805

Sheet 绍兴
A1: 序号 | B1: 报废批复文号 | C1: 资产编号 | D1: 资产名称 | E1: 资产类别名称 | F1: 资产原值 （元，不含税） | G1: 资产净值 （元，不含税） | H1: 累计折旧 | I1: 资产数量 | J1: 计量单位 （个/吨/米等） | K1: 规格型号 | L1: 生产厂家 | M1: 站点名称 | N1: 站点编码
A2: 1 | B2: 绍兴市分公司党委2024年第23次党委会会议纪要 | C2: 330600002476 | D2: 空调 | E2: 空调 | F2: 6274.19 | G2: 188.23 | H2: 6085.96 | I2: 台 | J2: 1 | K2: 3P 三相柜式（单冷） | M2: 上虞小越 | N2: 330682908000000942
A3: 2 | B3: 绍兴市分公司党委2024年第23次党委会会议纪要 | C3: 330600101673 | D3: 开关电源 | E3: 开关电源 | F3: 848.95 | G3: 25.47 | H3: 823.48 | I3: 架 | J3: 1 | K3: 48V-450A(50A模块)-200A | M3: 绍兴市新昌县七星街道岩里 | N3: 330624908000000381
A4: 3 | B4: 绍兴市分公司党委2024年第23次党委会会议纪要 | C4: 330600102304 | D4: 开关电源 | E4: 开关电源 | F4: 631.15 | G4: 18.93 | H4: 612.22 | I4: 架 | J4: 1 | K4: 48V-450A(50A模块)-100A | M4: 绍兴市越城区府山街道现代大厦街道站 | N4: 330602908000000882
A5: 4 | B5: 绍兴市分公司党委2024年第21次党委会会议纪要 | C5: 330600102606 | D5: 开关电源 | E5: 开关电源 | F5: 1025 | G5: 30.75 | H5: 994.25 | I5: 架 | J5: 1 | K5: 48V-600A(50A模块)-150 | M5: 绍兴市越城区皋埠镇刁泥山村 | N5: 330602908000000319
A6: 5 | B6: 绍兴市分公司党委2024年第23次党委会会议纪要 | C6: 330600102910 | D6: 开关电源 | E6: 开关电源 | F6: 707.4 | G6: 21.22 | H6: 686.18 | I6: 架 | J6: 1 | K6: 48V-300A(50A模块)-150A | M6: 绍兴市越城区福全镇七贤桥 | N6: 330600908000000110
A7: 6 | B7: 绍兴市分公司党委2024年第23次党委会会议纪要 | C7: 330600103411 | D7: 开关电源 | E7: 开关电源 | F7: 3003.01 | G7: 90.09 | H7: 2912.92 | I7: 架 | J7: 1 | K7: IMPS81013(150A) | M7: 绍兴上埠 | N7: 330602908000001078
A8: 7 | B8: 绍兴市分公司党委2024年第23次党委会会议纪要 | C8: 330600103544 | D8: 开关电源 | E8: 开关电源 | F8: 649.8 | G8: 19.49 | H8: 630.31 | I8: 架 | J8: 1 | K8: PS48400-3-2900 | M8: 绍兴漓渚TieK | N8: 330600908000000033
A9: 8 | B9: 绍兴市分公司党委2024年第21次党委会会议纪要 | C9: 330600103727 | D9: 开关电源 | E9: 开关电源 | F9: 3975.24 | G9: 119.26 | H9: 3855.98 | I9: 架 | J9: 1 | K9: 48-24A(6A模块)-12 | M9: 绍兴柯桥柯岩医院 | N9: 330600908000000512
A10: 9 | B10: 绍兴市分公司党委2024年第23次党委会会议纪要 | C10: 330600105805 | D10: 开关电源 | E10: 开关电源 | F10: 6186.76 | G10: 185.6 | H10: 6001.16 | I10: 架 | J10: 1 | K10: 48V-600A(50A模块)-150A | M10: 绍兴市诸暨市山下湖镇万金机械 | N10: 330681908000000892
A11: 10 | B11: 绍兴市分公司党委2024年第23次党委会会议纪要 | C11: 330600105806 | D11: 开关电源 | E11: 开关电源 | F11: 2286.6 | G11: 68.6 | H11: 2218 | I11: 架 | J11: 1 | K11: 48V-300A(50A模块)-100A | M11: 绍兴市诸暨市牌头镇西大庄 | N11: 330681908000001061
A12: 11 | B12: 绍兴市分公司党委2024年第23次党委会会议纪要 | C12: 330600106175 | D12: 开关电源 | E12: 开关电源 | F12: 598.75 | G12: 17.96 | H12: 580.79 | I12: 架 | J12: 1 | K12: 48V-300A(50A模块)-100A | M12: 绍兴市上虞市盖北镇盖北沿海 | N12: 330682908000000848
A13: 12 | B13: 绍兴市分公司党委2024年第23次党委会会议纪要 | C13: 330600106661 | D13: 空调 | E13: 空调 | F13: 206 | G13: 6.18 | H13: 199.82 | I13: 台 | J13: 1 | K13: RF73WDT | M13: 绍兴市新昌县镜岭镇雅庄 | N13: 330624908000000213
A14: 13 | B14: 绍兴市分公司党委2024年第23次党委会会议纪要 | C14: 330600106693 | D14: 空调 | E14: 空调 | F14: 257.5 | G14: 7.73 | H14: 249.77 | I14: 台 | J14: 1 | K14: RF73WDT | M14: 绍兴市嵊州市剡湖街道西大湾 | N14: 330683908000000477
A15: 14 | B15: 绍兴市分公司党委2024年第23次党委会会议纪要 | C15: 330600107275 | D15: 开关电源 | E15: 开关电源 | F15: 3683.8 | G15: 110.51 | H15: 3573.29 | I15: 架 | J15: 1 | K15: 48V-300A(50A模块)-100A | M15: 绍兴市新昌县城南乡荷花塘 | N15: 330624908000000312
A16: 15 | B16: 绍兴市分公司党委2024年第23次党委会会议纪要 | C16: 330600107298 | D16: 空调 | E16: 空调 | F16: 281.31 | G16: 8.44 | H16: 272.87 | I16: 台 | J16: 1 | K16: RF73WDT | M16: 诸暨大唐华海搬迁 | N16: 330681500000000325
A17: 16 | B17: 绍兴市分公司党委2024年第23次党委会会议纪要 | C17: 330600107602 | D17: 开关电源 | E17: 开关电源 | F17: 246.6 | G17: 7.4 | H17: 239.2 | I17: 架 | J17: 1 | K17: MSC-48-150-YLUA1 | M17: 诸暨关五 | N17: 330681908000000071
A18: 17 | B18: 绍兴市分公司党委2024年第23次党委会会议纪要 | C18: 330600107672 | D18: 开关电源 | E18: 开关电源 | F18: 707.4 | G18: 21.22 | H18: 686.18 | I18: 架 | J18: 1 | K18: 48V-300A(50A模块)-150A | M18: 绍兴市越城区鉴湖镇王家葑 | N18: 330602908000000685
A19: 18 | B19: 绍兴市分公司党委2024年第23次党委会会议纪要 | C19: 330600107688 | D19: 开关电源 | E19: 开关电源 | F19: 199.5 | G19: 5.99 | H19: 193.51 | I19: 架 | J19: 1 | K19: 48V-300A(50A模块)-100A | M19: 诸暨城关王谷北 | N19: 330681500000001669
A20: 19 | B20: 绍兴市分公司党委2024年第23次党委会会议纪要 | C20: 330600107696 | D20: 开关电源 | E20: 开关电源 | F20: 598.75 | G20: 17.96 | H20: 580.79 | I20: 架 | J20: 1 | K20: 48V-300A(50A模块)-100A | M20: 绍兴市诸暨市东和乡东和王六 | N20: 330681908000000459
A21: 20 | B21: 绍兴市分公司党委2024年第23次党委会会议纪要 | C21: 330600111002 | D21: 开关电源 | E21: 开关电源 | F21: 291.2 | G21: 8.74 | H21: 282.46 | I21: 架 | J21: 1 | K21: 48V-600A(50A模块)-100A | M21: 绍兴市越城区北海街道富临名家 | N21: 330602908000000796
A22: 21 | B22: 绍兴市分公司党委2024年第23次党委会会议纪要 | C22: 330600111077 | D22: 开关电源 | E22: 开关电源 | F22: 369.78 | G22: 11.09 | H22: 358.69 | I22: 架 | J22: 1 | K22: 48V-300A(50A模块)-200A | M22: 绍兴市诸暨市浣东街道白鱼坛 | N22: 330681908000000810
A23: 22 | B23: 绍兴市分公司党委2024年第23次党委会会议纪要 | C23: 330600111136 | D23: 开关电源 | E23: 开关电源 | F23: 598.75 | G23: 17.96 | H23: 580.79 | I23: 架 | J23: 1 | K23: 48V-300A(50A模块)-100A | M23: 绍兴市诸暨市同山镇同山五宅畈 | N23: 330681908000000702
A24: 23 | B24: 绍兴市分公司党委2024年第23次党委会会议纪要 | C24: 330600111139 | D24: 开关电源 | E24: 开关电源 | F24: 320.43 | G24: 9.61 | H24: 310.82 | I24: 架 | J24: 1 | K24: 48V-300A(50A模块)-150A | M24: 绍兴市诸暨市同山镇同山王沙溪 | N24: 330681908000000520
A25: 24 | B25: 绍兴市分公司党委2024年第23次党委会会议纪要 | C25: 330600111210 | D25: 开关电源 | E25: 开关电源 | F25: 898.2 | G25: 26.95 | H25: 871.25 | I25: 架 | J25: 1 | K25: 48V-600A(50A模块)-100 | M25: 绍兴朱家桥 | N25: 330602908000000108
A26: 25 | B26: 绍兴市分公司党委2024年第21次党委会会议纪要 | C26: 330600112877 | D26: 开关电源 | E26: 开关电源 | F26: 1084.8 | G26: 32.54 | H26: 1052.26 | I26: 架 | J26: 1 | K26: 48-24A(6A模块)-12 | M26: 绍兴稽东傅家岙 | N26: 330600908000000747
A27: 26 | B27: 绍兴市分公司党委2024年第23次党委会会议纪要 | C27: 330600112878 | D27: 开关电源 | E27: 开关电源 | F27: 534.48 | G27: 16.03 | H27: 518.45 | I27: 架 | J27: 1 | K27: 48-24A(6A模块)-12 | M27: 绍兴市新昌县巧英乡平砚 | N27: 330624908000000399
A28: 27 | B28: 绍兴市分公司党委2024年第21次党委会会议纪要 | C28: 330600113316 | D28: 配电箱 | E28: 配电箱 | F28: 3422.36 | G28: 102.67 | H28: 3319.69 | I28: 个 | J28: 1 | K28: KBP3-2-7WH（100A） | M28: 诸暨五纹岭 | N28: 330681908000000168
A29: 28 | B29: 绍兴市分公司党委2024年第23次党委会会议纪要 | C29: 330600113703 | D29: 开关电源 | E29: 开关电源 | F29: 4251.15 | G29: 127.53 | H29: 4123.62 | I29: 架 | J29: 1 | K29: 48V-600A(50A模块)-300A | M29: 绍兴市绍兴县杨汛桥镇高家村 | N29: 330600908000000668
A30: 29 | B30: 绍兴市分公司党委2024年第23次党委会会议纪要 | C30: 330600113938 | D30: 开关电源 | E30: 开关电源 | F30: 4792.16 | G30: 143.76 | H30: 4648.4 | I30: 架 | J30: 1 | K30: 48V-300A(50A模块)-100A | M30: 绍兴市上虞市百官镇百官东山路 | N30: 330682908000000836
A31: 30 | B31: 绍兴市分公司党委2024年第23次党委会会议纪要 | C31: 330600114009 | D31: 开关电源 | E31: 开关电源 | F31: 1152 | G31: 34.56 | H31: 1117.44 | I31: 架 | J31: 1 | K31: 48V-600A(50A模块)-350A | M31: 绍兴市上虞市百官镇秀水苑搬迁 | N31: 330682500000001630
A32: 31 | B32: 绍兴市分公司党委2024年第23次党委会会议纪要 | C32: 330600114057 | D32: 开关电源 | E32: 开关电源 | F32: 2114.47 | G32: 63.43 | H32: 2051.04 | I32: 架 | J32: 1 | K32: 48V-300A(50A模块)-150A | M32: 绍兴市绍兴县湖塘街道余家埭 | N32: 330600908000000658
A33: 32 | B33: 绍兴市分公司党委2024年第23次党委会会议纪要 | C33: 330600114466 | D33: 开关电源 | E33: 开关电源 | F33: 5304.85 | G33: 159.15 | H33: 5145.7 | I33: 架 | J33: 1 | K33: 48V-150A(50A模块)-100 | M33: 绍兴市上虞市曹娥街道辉煌线业 | N33: 330682908000000383
A34: 33 | B34: 绍兴市分公司党委2024年第23次党委会会议纪要 | C34: 330600114658 | D34: 开关电源 | E34: 开关电源 | F34: 1090.2 | G34: 32.71 | H34: 1057.49 | I34: 架 | J34: 1 | K34: 48V-150A(50A模块)-100 | M34: 绍兴市越城区城南街道城南凤凰路公路站 | N34: 330602908000000379
A35: 34 | B35: 绍兴市分公司党委2024年第21次党委会会议纪要 | C35: 330600114668 | D35: 开关电源 | E35: 开关电源 | F35: 1090.2 | G35: 32.71 | H35: 1057.49 | I35: 架 | J35: 1 | K35: 48V-150A(50A模块)-100 | M35: 绍兴市越城区稽山街道波影大酒店 | N35: 330602908000000315
A36: 35 | B36: 绍兴市分公司党委2024年第23次党委会会议纪要 | C36: 330600114802 | D36: 空调 | E36: 空调 | F36: 207 | G36: 6.21 | H36: 200.79 | I36: 台 | J36: 1 | K36: RF73WDT | M36: 绍兴市诸暨市应店街镇镇洪里坞 | N36: 330681908000000674
A37: 36 | B37: 绍兴市分公司党委2024年第21次党委会会议纪要 | C37: 330600114804 | D37: 空调 | E37: 空调 | F37: 231.75 | G37: 6.95 | H37: 224.8 | I37: 台 | J37: 1 | K37: RF73WDT | M37: 绍兴市诸暨市马剑镇马剑相公殿 | N37: 330681908000000582
A38: 37 | B38: 绍兴市分公司党委2024年第23次党委会会议纪要 | C38: 330600115016 | D38: 空调 | E38: 空调 | F38: 2398.22 | G38: 71.95 | H38: 2326.27 | I38: 台 | J38: 1 | K38: RF73WDT | M38: 绍兴市诸暨市江藻镇梓里村和尚武村 | N38: 330681908000000569
A39: 38 | B39: 绍兴市分公司党委2024年第21次党委会会议纪要 | C39: 330600115119 | D39: 空调 | E39: 空调 | F39: 257.5 | G39: 7.73 | H39: 249.77 | I39: 台 | J39: 1 | K39: RF73WDT | M39: 新昌翡翠山 | N39: 330624500010001544
A40: 39 | B40: 绍兴市分公司党委2024年第21次党委会会议纪要 | C40: 330600115386 | D40: 空调 | E40: 空调 | F40: 154.5 | G40: 4.64 | H40: 149.86 | I40: 台 | J40: 1 | K40: MSH-LC19CD | M40: 绍兴稽东柳岙 | N40: 330602908000000813
A41: 40 | B41: 绍兴市分公司党委2024年第21次党委会会议纪要 | C41: 330600115897 | D41: 空调 | E41: 空调 | F41: 4626 | G41: 138.78 | H41: 4487.22 | I41: 台 | J41: 1 | K41: KF-72LW-JH1SM(R2)（3匹）7.5KW | M41: 绍兴市越城区皋埠镇刁泥山村 | N41: 330602908000000319
A42: 41 | B42: 绍兴市分公司党委2024年第23次党委会会议纪要 | C42: 330600116345 | D42: 空调 | E42: 空调 | F42: 1164 | G42: 34.92 | H42: 1129.08 | I42: 台 | J42: 1 | K42: RF73WDT | M42: 绍兴市新昌县镜岭 | N42: 330624908000000214
A43: 42 | B43: 绍兴市分公司党委2024年第23次党委会会议纪要 | C43: 330600124044 | D43: 配电箱 | E43: 配电箱 | F43: 2921.86 | G43: 87.66 | H43: 2834.2 | I43: 个 | J43: 1 | K43: NXK1 | M43: 绍兴洋江 | N43: 330602908000000236
A44: 43 | B44: 绍兴市分公司党委2024年第23次党委会会议纪要 | C44: 330600124045 | D44: 开关电源 | E44: 开关电源 | F44: 1146.6 | G44: 34.4 | H44: 1112.2 | I44: 架 | J44: 1 | K44: 48V-600A(50A模块)-100 | M44: 绍兴洋江 | N44: 330602908000000236
A45: 44 | B45: 绍兴市分公司党委2024年第23次党委会会议纪要 | C45: 330600124192 | D45: 开关电源 | E45: 开关电源 | F45: 631.15 | G45: 18.93 | H45: 612.22 | I45: 架 | J45: 1 | K45: 48V-450A(50A模块)-100A | M45: 绍兴市新昌县回山镇植林 | N45: 330624908000000444
A46: 45 | B46: 绍兴市分公司党委2024年第23次党委会会议纪要 | C46: 330600124391 | D46: 开关电源 | E46: 开关电源 | F46: 1683.77 | G46: 50.51 | H46: 1633.26 | I46: 架 | J46: 1 | K46: 48V-600A(50A模块)-100 | M46: 诸暨应店街崇柱 | N46: 330681908000001540
A47: 46 | B47: 绍兴市分公司党委2024年第23次党委会会议纪要 | C47: 330600124752 | D47: 开关电源 | E47: 开关电源 | F47: 1021.75 | G47: 30.65 | H47: 991.1 | I47: 架 | J47: 1 | K47: PS48400-2C-50-艾默生 | M47: 嵊州蛟镇 | N47: 330683908000000017
A48: 47 | B48: 绍兴市分公司党委2024年第23次党委会会议纪要 | C48: 330600127047 | D48: 开关电源 | E48: 开关电源 | F48: 898.2 | G48: 26.95 | H48: 871.25 | I48: 架 | J48: 1 | K48: 48V-600A(50A模块)-100 | M48: 绍兴市虚拟站 | N48: 330600880000000000
A49: 48 | B49: 绍兴市分公司党委2024年第23次党委会会议纪要 | C49: 330600127615 | D49: 空调 | E49: 空调 | F49: 1131 | G49: 33.93 | H49: 1097.07 | I49: 台 | J49: 1 | K49: RF73WDT | M49: 绍兴市越城区北海街道富临名家 | N49: 330602908000000796
A50: 49 | B50: 绍兴市分公司党委2024年第23次党委会会议纪要 | C50: 330600127735 | D50: 空调 | E50: 空调 | F50: 231.75 | G50: 6.95 | H50: 224.8 | I50: 台 | J50: 1 | K50: SPW-V254DH5 | M50: 上虞上浦江水沿 | N50: 330682908000000182
A51: 50 | B51: 绍兴市分公司党委2024年第23次党委会会议纪要 | C51: 330600128063 | D51: 空调 | E51: 空调 | F51: 358.54 | G51: 10.76 | H51: 347.78 | I51: 台 | J51: 1 | K51: RF73WDT（3匹）7.5KW | M51: 绍兴市诸暨市陶朱街道张家村 | N51: 330681908000000606
A52: 51 | B52: 绍兴市分公司党委2024年第23次党委会会议纪要 | C52: 330600128164 | D52: 空调 | E52: 空调 | F52: 231.75 | G52: 6.95 | H52: 224.8 | I52: 台 | J52: 1 | K52: SPW-V254DH5 | M52: 柯桥钱清新甸搬迁 | N52: 330621500000000249
A53: 52 | B53: 绍兴市分公司党委2024年第23次党委会会议纪要 | C53: 330600128299 | D53: 空调 | E53: 空调 | F53: 2003.75 | G53: 60.11 | H53: 1943.64 | I53: 台 | J53: 1 | K53: LE75WGT-LFC75WGT | M53: 新昌庙外 | N53: 330624908000000121
A54: 53 | B54: 绍兴市分公司党委2024年第23次党委会会议纪要 | C54: 330600128405 | D54: 空调 | E54: 空调 | F54: 103 | G54: 3.09 | H54: 99.91 | I54: 台 | J54: 1 | K54: LF75WGT | M54: 绍兴市虚拟站 | N54: 330600880000000000
A55: 54 | B55: 绍兴市分公司党委2024年第23次党委会会议纪要 | C55: 330600128496 | D55: 空调 | E55: 空调 | F55: 257.5 | G55: 7.73 | H55: 249.77 | I55: 台 | J55: 1 | K55: RF73WDT | M55: 绍兴市新昌县七星街道西郊中学 | N55: 330624908000000233
A56: 55 | B56: 绍兴市分公司党委2024年第23次党委会会议纪要 | C56: 330600129491 | D56: 开关电源 | E56: 开关电源 | F56: 4597.48 | G56: 137.92 | H56: 4459.56 | I56: 架 | J56: 1 | K56: 100A(50A高效-满架300A) | M56: 绍兴城南禹陵渡假 | N56: 330602908000000339
A57: 56 | B57: 绍兴市分公司党委2024年第23次党委会会议纪要 | C57: 330600129821 | D57: 开关电源 | E57: 开关电源 | F57: 898.2 | G57: 26.95 | H57: 871.25 | I57: 架 | J57: 1 | K57: 48V-400A(50A模块)-150 | M57: 诸暨周庄 | N57: 330681908000001345
A58: 57 | B58: 绍兴市分公司党委2024年第23次党委会会议纪要 | C58: 330600132105 | D58: 开关电源 | E58: 开关电源 | F58: 1021.75 | G58: 30.65 | H58: 991.1 | I58: 架 | J58: 1 | K58: PS48400-2C-50 | M58: 绍兴城南邮电技校西 | N58: 330602500000000144
A59: 58 | B59: 绍兴市分公司党委2024年第23次党委会会议纪要 | C59: 330600135120 | D59: 开关电源 | E59: 开关电源 | F59: 4566.38 | G59: 136.99 | H59: 4429.39 | I59: 架 | J59: 1 | K59: 48V-600A(50A模块)-200A | M59: 绍兴市越城区北海街道香滨半岛 | N59: 330602908000000650
A60: 59 | B60: 绍兴市分公司党委2024年第23次党委会会议纪要 | C60: 330600303608 | D60: 开关电源 | E60: 开关电源 | F60: 4135.82 | G60: 124.07 | H60: 4011.75 | I60: 架 | J60: 1 | K60: 1U4840-40A室外型成套后备电源 | M60: 诸暨泉畈 | N60: 330681908000000270
A61: 60 | B61: 绍兴市分公司党委2024年第23次党委会会议纪要 | C61: 330600305363 | D61: 开关电源 | E61: 开关电源 | F61: 11199.46 | G61: 335.98 | H61: 10863.48 | I61: 架 | J61: 1 | K61: 嵌入式高频开关电源-48V/200A高效系统(50A高效模块，共用电源系统，三相交流输入)-150A | M61: 绍兴陶堰大横江 | N61: 330602908000000885
A62: 61 | B62: 绍兴市分公司党委2024年第23次党委会会议纪要 | C62: 330600305812 | D62: 开关电源 | E62: 开关电源 | F62: 5699.26 | G62: 170.98 | H62: 5528.28 | I62: 架 | J62: 1 | K62: 嵌入式高频开关电源-48V/200A高效系统(50A高效模块，共用电源系统，三相交流输入)-100A | M62: 绍兴越城城南中成新村西 | N62: 330602500000001366
A63: 62 | B63: 绍兴市分公司党委2024年第23次党委会会议纪要 | C63: 330600305824 | D63: 开关电源 | E63: 开关电源 | F63: 8130 | G63: 243.9 | H63: 7886.1 | I63: 架 | J63: 1 | K63: 嵌入式高频开关电源-48V/200A高效系统(50A高效模块，共用电源系统，三相交流输入)-100A | M63: 绍兴蔡家岙 | N63: 330600908000000965
A64: 63 | B64: 绍兴市分公司党委2024年第23次党委会会议纪要 | C64: 330600311373 | D64: 空调 | E64: 空调 | F64: 7111.46 | G64: 213.34 | H64: 6898.12 | I64: 台 | J64: 1 | K64: 3P单冷三相整机 | M64: 绍兴洋江 | N64: 330602908000000236
A65: 64 | B65: 绍兴市分公司党委2024年第23次党委会会议纪要 | C65: 330600312337 | D65: 空调 | E65: 空调 | F65: 6327.79 | G65: 189.83 | H65: 6137.96 | I65: 台 | J65: 1 | K65: 3P单冷三相整机 | M65: 绍兴江桥 | N65: 330600908000000034
A66: 65 | B66: 绍兴市分公司党委2024年第23次党委会会议纪要 | C66: 330600312446 | D66: 空调 | E66: 空调 | F66: 6698.27 | G66: 200.95 | H66: 6497.32 | I66: 台 | J66: 1 | K66: 3P单冷三相整机 | M66: 诸暨邮政 | N66: 330681908000000024
A67: 66 | B67: 绍兴市分公司党委2024年第23次党委会会议纪要 | C67: 330600313554 | D67: 空调 | E67: 空调 | F67: 3675.48 | G67: 110.26 | H67: 3565.22 | I67: 台 | J67: 1 | K67: 2P单冷单相整机 | M67: 绍兴市虚拟站 | N67: 330600880000000000
A68: 67 | B68: 绍兴市分公司党委2024年第23次党委会会议纪要 | C68: 330600315637 | D68: 空调 | E68: 空调 | F68: 5679.52 | G68: 170.39 | H68: 5509.13 | I68: 台 | J68: 1 | K68: 3P柜机 | M68: 诸暨大唐华海集团 | N68: 330681500000000102
A69: 68 | B69: 绍兴市分公司党委2024年第23次党委会会议纪要 | C69: 330600315818 | D69: 开关电源 | E69: 开关电源 | F69: 14210.19 | G69: 426.31 | H69: 13783.88 | I69: 架 | J69: 1 | K69: 200A- | M69: 柯桥柯桥梅巷2 | N69: 330621500000000026
A70: 69 | B70: 绍兴市分公司党委2024年第23次党委会会议纪要 | C70: 330600319318 | D70: 开关电源 | E70: 开关电源 | F70: 9788.4 | G70: 293.65 | H70: 9494.75 | I70: 架 | J70: 1 | K70: 48V/600A高效系统(50A高效模块)150A | M70: 柯桥齐贤前进南 | N70: 330621500000000108
A71: 70 | B71: 绍兴市分公司党委2024年第23次党委会会议纪要 | C71: 330600319553 | D71: 机柜 | E71: 机柜 | F71: 13491.63 | G71: 404.75 | H71: 13086.88 | I71: 个 | J71: 1 | K71: —48V/200A(32A/3P*2预留4套BBU安装空间自然风冷) | M71: 绍兴市嵊州市三江街道麦地朗 | N71: 330683908000000480
A72: 71 | B72: 绍兴市分公司党委2024年第23次党委会会议纪要 | C72: 330600319963 | D72: 开关电源 | E72: 开关电源 | F72: 6700.46 | G72: 201.01 | H72: 6499.45 | I72: 架 | J72: 1 | K72: 嵌入式开关电源32A/3P*1（室外标准机柜用） | M72: 绍兴市诸暨市直埠镇张马 | N72: 330681908000000814
A73: 72 | B73: 绍兴市分公司党委2024年第23次党委会会议纪要 | C73: 330600320249 | D73: 开关电源 | E73: 开关电源 | F73: 5722.28 | G73: 171.67 | H73: 5550.61 | I73: 架 | J73: 1 | K73: 嵌入式开关电源63A/2P*1（室外标准机柜用） | M73: 绍兴市绍兴县齐贤镇上丈午村 | N73: 330600908000000510
A74: 73 | B74: 绍兴市分公司党委2024年第23次党委会会议纪要 | C74: 330600320590 | D74: 空调 | E74: 空调 | F74: 5936.86 | G74: 178.11 | H74: 5758.75 | I74: 台 | J74: 1 | K74: 3P单冷三相整机 | M74: 绍兴市虚拟站 | N74: 330600880000000000
A75: 74 | B75: 绍兴市分公司党委2024年第23次党委会会议纪要 | C75: 330600321893 | D75: 开关电源 | E75: 开关电源 | F75: 15880.19 | G75: 476.41 | H75: 15403.78 | I75: 架 | J75: 1 | K75: —48V/200A(32A/3P*2预留4套BBU安装空间自然风冷) | M75: 绍兴市绍兴县安昌镇华力化纤 | N75: 330600908000000611
A76: 75 | B76: 绍兴市分公司党委2024年第23次党委会会议纪要 | C76: 330600321899 | D76: 开关电源 | E76: 开关电源 | F76: 3588.89 | G76: 107.67 | H76: 3481.22 | I76: 架 | J76: 1 | K76: 嵌入式开关电源32A/3P*1（室外标准机柜用） | M76: 绍兴市上虞市沥海镇滨海昌海生物 | N76: 330682908000000492
A77: 76 | B77: 绍兴市分公司党委2024年第23次党委会会议纪要 | C77: 330600321968 | D77: 开关电源 | E77: 开关电源 | F77: 16703.42 | G77: 501.1 | H77: 16202.32 | I77: 架 | J77: 1 | K77: 开关电源 | M77: 上虞滨海闸前大桥 | N77: 33068201000523
A78: 77 | B78: 绍兴市分公司党委2024年第23次党委会会议纪要 | C78: 330600323676 | D78: 空调 | E78: 空调 | F78: 4721.59 | G78: 141.65 | H78: 4579.94 | I78: 台 | J78: 1 | K78: 2P单冷单相整机 | M78: 绍兴市虚拟站 | N78: 330600880000000000
A79: 78 | B79: 绍兴市分公司党委2024年第23次党委会会议纪要 | C79: 330600323746 | D79: 开关电源 | E79: 开关电源 | F79: 12549.19 | G79: 376.48 | H79: 12172.71 | I79: 架 | J79: 1 | K79: 电源机柜一体化电源柜120A-120A（总容量-实际容量） | M79: 上虞路东 | N79: 330682908000000068
A80: 79 | B80: 绍兴市分公司党委2024年第23次党委会会议纪要 | C80: 330600326430 | D80: 开关电源 | E80: 开关电源 | F80: 5261.6 | G80: 157.85 | H80: 5103.75 | I80: 架 | J80: 1 | K80: 48V/300A高效系统(50A高效模块，共用电源系统，三相交流输入)150A | M80: 绍兴市越城区皋埠镇后堡 | N80: 330602908000001034
A81: 80 | B81: 绍兴市分公司党委2024年第23次党委会会议纪要 | C81: 330600326961 | D81: 动环 | E81: 动环 | F81: 2883.02 | G81: 86.49 | H81: 2796.53 | I81: 个 | J81: 1 | K81: 主设备室内型成套设备基本配置模型 | M81: 绍兴城西北海综合市场 | N81: 330602500000000001
A82: 81 | B82: 绍兴市分公司党委2024年第23次党委会会议纪要 | C82: 330600327208 | D82: 动环 | E82: 动环 | F82: 3561.23 | G82: 106.84 | H82: 3454.39 | I82: 个 | J82: 1 | K82: 主设备室内型成套设备基本配置模型 | M82: 绍兴市越城区城南街道城南凤凰路公路站 | N82: 330602908000000379
A83: 82 | B83: 绍兴市分公司党委2024年第23次党委会会议纪要 | C83: 330600327485 | D83: 空调 | E83: 空调 | F83: 6186.69 | G83: 185.6 | H83: 6001.09 | I83: 台 | J83: 1 | K83: 3P单冷三相整机 | M83: 绍兴市新昌县七星街道宋家 | N83: 330624908000000237
A84: 83 | B84: 绍兴市分公司党委2024年第23次党委会会议纪要 | C84: 330600327596 | D84: 空调 | E84: 空调 | F84: 5532.04 | G84: 165.96 | H84: 5366.08 | I84: 台 | J84: 1 | K84: 3P单冷三相整机 | M84: 嵊州三江西街 | N84: 330683908000000995
A85: 84 | B85: 绍兴市分公司党委2024年第21次党委会会议纪要 | C85: 330600327670 | D85: 动环 | E85: 动环 | F85: 1147.08 | G85: 34.41 | H85: 1112.67 | I85: 个 | J85: 1 | K85: 主设备室外型拉远站用FSU设备常温48V直流型 | M85: 绍兴市越城区城南街道城南凤凰路公路站 | N85: 330602908000000379
A86: 85 | B86: 绍兴市分公司党委2024年第23次党委会会议纪要 | C86: 330600328257 | D86: 空调 | E86: 空调 | F86: 6888.27 | G86: 206.65 | H86: 6681.62 | I86: 台 | J86: 1 | K86: 3P单冷三相整机 | M86: 绍兴市绍兴县马鞍镇滨海盛兴印染 | N86: 330600908000000456
A87: 86 | B87: 绍兴市分公司党委2024年第21次党委会会议纪要 | C87: 330600329913 | D87: 电表 | E87: 电表 | F87: 599.04 | G87: 17.97 | H87: 581.07 | I87: 个 | J87: 1 | K87: 门禁设备 | M87: 上虞崧夏光明 | N87: 33068201000490
A88: 87 | B88: 绍兴市分公司党委2024年第23次党委会会议纪要 | C88: 330600330178 | D88: 空调 | E88: 空调 | F88: 6213.28 | G88: 186.4 | H88: 6026.88 | I88: 台 | J88: 1 | K88: 3P单冷三相整机 | M88: 绍兴市诸暨市暨阳街道郭家 | N88: 330681908000000390
A89: 88 | B89: 绍兴市分公司党委2024年第23次党委会会议纪要 | C89: 330600330762 | D89: 空调 | E89: 空调 | F89: 4208.61 | G89: 126.26 | H89: 4082.35 | I89: 台 | J89: 1 | K89: 2P单冷单相整机 | M89: 诸暨牌头东山王北 | N89: 330681500000000329
A90: 89 | B90: 绍兴市分公司党委2024年第23次党委会会议纪要 | C90: 330600331226 | D90: 空调 | E90: 空调 | F90: 4153.29 | G90: 124.6 | H90: 4028.69 | I90: 台 | J90: 1 | K90: 2P单冷单相整机 | M90: 绍兴城西柯能轿修东搬迁 | N90: 330602500000000300
A91: 90 | B91: 绍兴市分公司党委2024年第21次党委会会议纪要 | C91: 330600334530 | D91: 开关电源 | E91: 开关电源 | F91: 6410.57 | G91: 192.32 | H91: 6218.25 | I91: 架 | J91: 1 | K91: 48V/600A高效系统(50A高效模块)150A | M91: 绍兴越城袍江新和照明 | N91: 330602500000001567
A92: 91 | B92: 绍兴市分公司党委2024年第21次党委会会议纪要 | C92: 330600334533 | D92: 配电箱 | E92: 配电箱 | F92: 1952.08 | G92: 58.56 | H92: 1893.52 | I92: 个 | J92: 1 | K92: 交流配电箱三相（含市电油机手动转换开关）380V/100A室内型 | M92: 绍兴越城袍江新和照明 | N92: 330602500000001567
A93: 92 | B93: 绍兴市分公司党委2024年第23次党委会会议纪要 | C93: 330600334808 | D93: 开关电源 | E93: 开关电源 | F93: 13544.68 | G93: 406.34 | H93: 13138.34 | I93: 架 | J93: 1 | K93: 综合柜（PU）*1+设备柜（PU）*1 | M93: 柯桥滨海通盛印染 | N93: 330621500000001620
A94: 93 | B94: 绍兴市分公司党委2024年第23次党委会会议纪要 | C94: 330600337225 | D94: 空调 | E94: 空调 | F94: 6914.49 | G94: 393.74 | H94: 6520.75 | I94: 台 | J94: 1 | K94: 3P单冷三相整机 | M94: 绍兴市虚拟站 | N94: 330600880000000000
A95: 94 | B95: 绍兴市分公司党委2024年第23次党委会会议纪要 | C95: 330600362194 | D95: 电表 | E95: 电表 | F95: 521.68 | G95: 327.56 | H95: 194.12 | I95: 个 | J95: 1 | K95: 直流计量终端6分路 | M95: 诸暨青塔-2 | N95: 330681908000000073
A96: 95 | B96: 绍兴市分公司党委2024年第23次党委会会议纪要 | C96: 330600399636 | D96: 配电箱 | E96: 配电箱 | F96: 4180.94 | G96: 3279.98 | H96: 900.96 | I96: 台 | J96: 1 | K96: 直流配电设备智能配电单元分户下电1U | M96: 绍兴城南长城路NR | N96: 330602500010002141
A97: 96 | B97: 绍兴市分公司党委2023年第21次党委会会议纪要 | C97: 330600366464 | D97: 外市电引入 | E97: 外市电引入 | F97: 13980.19 | G97: 10365.09 | H97: 3615.1 | I97: 米 | J97: 100.000 | K97: 非模块化外市电引入直供380V（非模块化） | M97: 上虞百官新宇新村南搬迁 | N97: 330682500000001729
A98: 97 | B98: 绍兴市分公司党委2024年第23次党委会会议纪要 | C98: 无*1x25红**绍兴城东京东方东NR*330602500010002186**无*拆站*废旧 | D98: 电池线 | E98: 电池线 | F98: 0 | H98: 0 | I98: 米 | J98: 2
A99: 98 | B99: 绍兴市分公司党委2024年第23次党委会会议纪要 | C99: 无*1x25蓝**绍兴城东京东方东NR*330602500010002186**无*拆站*废旧 | D99: 电池线 | E99: 电池线 | F99: 0 | H99: 0 | I99: 米 | J99: 2
A100: 99 | B100: 绍兴市分公司党委2024年第23次党委会会议纪要 | C100: 无*1x95红*①*绍兴市越城区皋埠镇刁泥山村*330602908000000319**无*拆站*废旧 | D100: 电池线 | E100: 电池线 | F100: 0 | H100: 0 | I100: 米 | J100: 3
A101: 100 | B101: 绍兴市分公司党委2024年第23次党委会会议纪要 | C101: 无*1x95红*②*绍兴市越城区皋埠镇刁泥山村*330602908000000319**无*拆站*废旧 | D101: 电池线 | E101: 电池线 | F101: 0 | H101: 0 | I101: 米 | J101: 3
A102: 101 | B102: 绍兴市分公司党委2024年第23次党委会会议纪要 | C102: 无*1x95蓝*①*绍兴市越城区皋埠镇刁泥山村*330602908000000319**无*拆站*废旧 | D102: 电池线 | E102: 电池线 | F102: 0 | H102: 0 | I102: 米 | J102: 3
A103: 102 | B103: 绍兴市分公司党委2024年第23次党委会会议纪要 | C103: 无*1x95蓝*②*绍兴市越城区皋埠镇刁泥山村*330602908000000319**无*拆站*废旧 | D103: 电池线 | E103: 电池线 | F103: 0 | H103: 0 | I103: 米 | J103: 3
A104: 103 | B104: 绍兴市分公司党委2024年第23次党委会会议纪要 | C104: 无*4x16黑**绍兴洋江*330602908000000236**无*拆站*废旧 | D104: 电池线 | E104: 电池线 | F104: 0 | H104: 0 | I104: 米 | J104: 4
A105: 104 | B105: 绍兴市分公司党委2024年第23次党委会会议纪要 | C105: 无*4x35铝线**绍兴城东京东方东NR*330602500010002186**无*拆站*废旧 | D105: (废旧物资)-铝线 | E105: (废旧物资)-铝线 | F105: 0 | H105: 0 | I105: 米 | J105: 2
A106: 105 | B106: 绍兴市分公司党委2024年第23次党委会会议纪要 | C106: 无*95方铜-黑**绍兴洋江*330602908000000236**无*拆站*废旧 | D106: 电池线 | E106: 电池线 | F106: 0 | H106: 0 | I106: 米 | J106: 4
A107: 106 | B107: 绍兴市分公司党委2024年第23次党委会会议纪要 | C107: 无*95方铜-红**绍兴洋江*330602908000000236**无*拆站*废旧 | D107: 电池线 | E107: 电池线 | F107: 0 | H107: 0 | I107: 米 | J107: 4
A108: 107 | B108: 绍兴市分公司党委2024年第23次党委会会议纪要 | C108: 无*95方铜-蓝*①*绍兴洋江*330602908000000236**无*拆站*废旧 | D108: 电池线 | E108: 电池线 | F108: 0 | H108: 0 | I108: 米 | J108: 4
A109: 108 | B109: 绍兴市分公司党委2024年第23次党委会会议纪要 | C109: 无*95方铜-蓝*②*绍兴洋江*330602908000000236**无*拆站*废旧 | D109: 电池线 | E109: 电池线 | F109: 0 | H109: 0 | I109: 米 | J109: 4
A110: 109 | B110: 绍兴市分公司党委2024年第23次党委会会议纪要 | C110: 无*汇流条**柯桥钱清新甸搬迁*330621500000000249**无*拆站*废旧 | D110: 汇流条 | E110: 汇流条 | F110: 0 | H110: 0 | I110: 段 | J110: 4
A111: 110 | B111: 绍兴市分公司党委2024年第23次党委会会议纪要 | C111: 无*汇流条**绍兴市越城区皋埠镇刁泥山村*330602908000000319**无*拆站*废旧 | D111: 汇流条 | E111: 汇流条 | F111: 0 | H111: 0 | I111: 段 | J111: 2
A112: 111 | B112: 绍兴市分公司党委2024年第23次党委会会议纪要 | C112: 无*铜牌**柯桥钱清新甸搬迁*330621500000000249**无*拆站*废旧 | D112: 铜牌 | E112: 铜牌 | F112: 0 | H112: 0 | I112: 块 | J112: 3
A113: 112 | B113: 绍兴市分公司党委2024年第23次党委会会议纪要 | C113: 无*铜牌**绍兴市越城区皋埠镇刁泥山村*330602908000000319**无*拆站*废旧 | D113: 铜牌 | E113: 铜牌 | F113: 0 | H113: 0 | I113: 块 | J113: 2
A114: 113 | B114: 绍兴市分公司党委2024年第23次党委会会议纪要 | C114: 无*铜牌**绍兴洋江*330602908000000236**无*拆站*废旧 | D114: 铜牌 | E114: 铜牌 | F114: 0 | H114: 0 | I114: 块 | J114: 1
